bitfinex/quotes_SOLUSD_20220129
["timestamp","ask_amount","ask_price","bid_price","bid_amount"]
[1643438035076,6.25,95.895,95.828,0.25]
[1643438035468,6.0,95.89,95.828,0.25]
[1643438035673,24.0637,95.889,95.828,0.25]
[1643438035868,6.0,95.885,95.828,0.25]
[1643438036068,6.0,95.878,95.821,0.25]
[1643438036271,0.25,95.877,95.821,0.25]
[1643438036468,0.25,95.877,95.822,3.6275468]
[1643438036868,0.25,95.877,95.823,0.25]
[1643438037268,0.25,95.877,95.824,3.6275468]
[1643438037671,0.25,95.877,95.825,0.25]
[1643438037870,0.25,95.877,95.826,3.6275468]
[1643438038276,0.25,95.877,95.827,0.25]
[1643438038471,0.25,95.877,95.828,3.6275468]
[1643438038872,0.25,95.877,95.829,0.25]
[1643438039073,6.0,95.878,95.83,3.6275468]
[1643438039274,6.0,95.878,95.831,0.25]
[1643438039475,6.0,95.878,95.832,3.6275468]
[1643438039675,6.0,95.878,95.832,37.45964148]
[1643438039873,6.0,95.878,95.833,3.8775468]
[1643438040073,6.0,95.878,95.834,3.6275468]
[1643438040275,6.0,95.878,95.835,0.25]
[1643438040877,6.0,95.878,95.836,3.6275468]
[1643438041298,6.0,95.878,95.837,0.25]
[1643438041479,6.0,95.878,95.838,3.6275468]
[1643438041775,6.0,95.878,95.839,0.25]
[1643438042877,6.0,95.878,95.84,3.63740589]
[1643438043278,6.0,95.878,95.841,2.79345498]
[1643438044782,0.25,95.877,95.841,2.54345498]
[1643438044982,0.25,95.877,95.83,2.82268189]
[1643438045183,0.25,95.877,95.826,2.82268189]
[1643438045782,0.25,95.877,95.827,2.82268189]
[1643438046183,0.25,95.877,95.828,3.07268189]
[1643438046382,0.25,95.877,95.83,2.82268189]
[1643438046783,0.25,95.877,95.831,0.25]
[1643438046982,0.25,95.877,95.832,3.63641731]
[1643438049005,0.25,95.877,95.832,6.4590992]
[1643438051408,0.25,95.877,95.83,2.82268189]
[1643438051605,0.25,95.877,95.829,2.82268189]
[1643438052409,0.25,95.887,95.83,2.82268189]
[1643438053610,6.0,95.878,95.83,2.82268189]
[1643438053810,0.25,95.877,95.829,2.82268189]
[1643438054806,30.712,95.92,95.83,2.79268247]
[1643438055007,24.5533,95.918,95.837,2.82268189]
[1643438055407,24.5533,95.918,95.845,2.82268189]
[1643438055608,24.5533,95.918,95.847,2.82268189]
[1643438055807,24.5533,95.918,95.848,0.25]
[1643438056010,24.5533,95.918,95.849,6.4590992]
[1643438056209,0.25,95.893,95.849,3.63641731]
[1643438056419,24.5533,95.918,95.85,0.25]
[1643438056620,6.0,95.908,95.85,0.25]
[1643438056919,6.0,95.908,95.851,3.63641731]
[1643438057322,6.0,95.908,95.852,0.25]
[1643438057524,6.0,95.908,95.853,3.63641731]
[1643438057923,6.0,95.908,95.854,0.25]
[1643438058122,6.0,95.908,95.854,2.79268247]
[1643438058323,6.0,95.908,95.859,2.82268189]
[1643438058724,6.0,95.908,95.86,2.79268247]
[1643438058927,24.5533,95.918,95.861,39.75333456]
[1643438059126,24.5533,95.918,95.861,42.29601703]
[1643438059324,0.25,95.917,95.862,6.42909978]
[1643438059725,6.0,95.908,95.863,6.17909978]
[1643438059924,6.0,95.908,95.864,0.25]
[1643438060127,6.0,95.908,95.864,3.88641731]
[1643438060526,6.0,95.908,95.864,0.25]
[1643438061225,24.5533,95.918,95.864,0.25]
[1643438061431,0.25,95.917,95.864,0.25]
[1643438062929,0.25,95.917,95.863,2.54268247]
[1643438063129,0.25,95.917,95.864,0.25]
[1643438063333,0.25,95.917,95.861,36.11691725]
[1643438063535,6.0,95.908,95.861,36.11691725]
[1643438063935,0.25,95.907,95.861,36.11691725]
[1643438065636,3.18920518,95.907,95.861,36.11691725]
[1643438065837,6.0,95.908,95.861,36.11691725]
[1643438066637,6.0,95.914,95.861,36.11691725]
[1643438066838,10.31224836,95.913,95.861,36.11691725]
[1643438067040,6.0,95.903,95.861,36.11691725]
[1643438067255,6.0,95.903,95.862,2.79268247]
[1643438067441,10.56224836,95.913,95.862,2.54268247]
[1643438067665,0.25,95.902,95.861,36.11691725]
[1643438067865,0.25,95.913,95.862,0.25]
[1643438068069,6.25,95.913,95.862,0.25]
[1643438068667,9.03448988,95.912,95.862,0.25]
[1643438068867,0.25,95.911,95.862,0.25]
[1643438069868,0.25,95.912,95.861,36.11691725]
[1643438070268,8.58836177,95.912,95.861,36.11691725]
[1643438070670,8.58836177,95.912,95.84,2.82268189]
[1643438070871,6.0,95.902,95.84,2.82268189]
[1643438071068,6.0,95.901,95.825,2.82268189]
[1643438071269,23.792,95.9,95.824,3.6249917]
[1643438071474,23.792,95.9,95.826,16.43624843]
[1643438071673,3.10783968,95.889,95.827,47.7520748]
[1643438071871,24.3195,95.888,95.828,3.6249917]
[1643438072071,6.0,95.878,95.828,3.8749917]
[1643438072273,0.25,95.877,95.829,3.6249917]
[1643438072671,0.25,95.877,95.83,0.25]
[1643438072971,0.25,95.877,95.831,3.6249917]
[1643438073371,0.25,95.877,95.832,0.25]
[1643438073571,0.25,95.878,95.832,0.25]
[1643438074373,0.25,95.878,95.825,0.25]
[1643438074572,0.25,95.878,95.832,2.54268247]
[1643438074871,0.25,95.878,95.833,3.87481231]
[1643438075074,0.25,95.878,95.834,3.62481231]
[1643438075273,6.0,95.909,95.835,0.25]
[1643438075474,6.0,95.909,95.835,15.58797379]
[1643438075675,8.64068517,95.908,95.837,2.82268189]
[1643438075874,8.64068517,95.908,95.838,0.25]
[1643438076075,6.0,95.898,95.839,3.62481231]
[1643438076273,6.0,95.898,95.84,37.87368794]
[1643438076476,0.25,95.897,95.84,37.87368794]
[1643438076678,0.25,95.897,95.84,40.16637041]
[1643438076679,6.25,95.897,95.84,40.16637041]
[1643438076878,23.707,95.896,95.841,2.79268247]
[1643438077078,6.0,95.886,95.841,2.79268247]
[1643438077277,6.0,95.886,95.842,2.54268247]
[1643438077479,23.6535,95.924,95.843,3.62413754]
[1643438077679,23.707,95.923,95.852,6.0]
[1643438077879,6.0,95.914,95.853,6.25]
[1643438078079,6.0,95.913,95.854,6.0]
[1643438078280,23.957,95.923,95.863,6.0]
[1643438078481,0.25,95.912,95.863,6.0]
[1643438078679,6.0,95.913,95.856,43.29581474]
[1643438078680,6.0,95.913,95.864,0.25]
[1643438078879,6.0,95.913,95.857,0.25]
[1643438078880,6.0,95.903,95.857,0.25]
[1643438079482,5.5,95.913,95.857,0.25]
[1643438079681,9.06891503,95.912,95.856,43.29581474]
[1643438080082,0.25,95.911,95.842,2.54268247]
[1643438080284,22.8499,95.911,95.837,2.82268189]
[1643438080483,22.8499,95.911,95.837,5.61536436]
[1643438080684,22.8499,95.911,95.837,2.79268247]
[1643438080885,22.8499,95.911,95.838,3.62267564]
[1643438081083,22.8499,95.911,95.839,43.35267244]
[1643438081288,6.0,95.901,95.84,3.62267564]
[1643438081686,6.0,95.901,95.824,2.54268247]
[1643438081687,23.5988,95.9,95.829,2.82268189]
[1643438082088,6.0,95.89,95.83,12.79489615]
[1643438082287,24.6133,95.889,95.831,3.62436492]
[1643438082692,6.0,95.879,95.832,42.12039891]
[1643438082892,6.0,95.879,95.833,3.62436492]
[1643438083094,6.0,95.873,95.833,3.62436492]
[1643438083295,0.25,95.872,95.826,2.82268189]
[1643438083495,0.25,95.872,95.816,2.82268189]
[1643438083695,6.0,95.873,95.816,2.82268189]
[1643438083894,0.25,95.872,95.817,2.54268247]
[1643438084098,0.25,95.872,95.818,2.82268189]
[1643438084296,0.25,95.872,95.82,34.93602695]
[1643438084497,0.25,95.872,95.821,3.62415221]
[1643438084695,0.25,95.872,95.821,3.87415221]
[1643438084896,6.0,95.873,95.822,16.42666442]
[1643438085096,6.0,95.878,95.824,2.82268189]
[1643438085297,6.0,95.878,95.825,0.25]
[1643438085696,6.0,95.878,95.826,3.62415221]
[1643438085896,9.63650948,95.877,95.827,0.25]
[1643438086097,6.0,95.867,95.828,3.62415221]
[1643438086521,6.0,95.867,95.824,3.62415221]
[1643438086923,6.0,95.867,95.825,12.79441617]
[1643438087125,6.0,95.867,95.826,3.62415221]
[1643438087525,6.0,95.878,95.827,0.25]
[1643438087727,6.0,95.878,95.828,3.62415221]
[1643438088124,6.0,95.878,95.829,0.25]
[1643438088325,8.36890721,95.877,95.83,3.62415221]
[1643438088525,6.0,95.867,95.827,3.62415221]
[1643438088927,0.25,95.866,95.827,3.62415221]
[1643438089127,0.25,95.866,95.824,3.62415221]
[1643438089527,6.25,95.866,95.824,3.62415221]
[1643438090428,6.25,95.866,95.825,0.25]
[1643438090629,6.25,95.866,95.826,3.62415221]
[1643438090828,6.25,95.866,95.827,0.25]
[1643438091629,6.0,95.866,95.827,0.25]
[1643438092029,6.0,95.866,95.824,0.25]
[1643438092631,6.0,95.866,95.825,3.62755868]
[1643438092833,0.25,95.865,95.826,0.25]
[1643438093032,0.25,95.865,95.827,3.62755868]
[1643438093532,0.25,95.865,95.828,0.25]
[1643438094734,0.25,95.865,95.824,0.25]
[1643438094934,0.25,95.865,95.825,3.63098288]
[1643438095333,6.0,95.866,95.826,0.25]
[1643438095534,6.0,95.866,95.827,3.63098288]
[1643438095936,6.0,95.866,95.828,0.25]
[1643438096237,6.0,95.866,95.829,3.63098288]
[1643438096637,6.0,95.866,95.83,0.25]
[1643438096836,6.0,95.866,95.831,3.63098288]
[1643438097240,6.0,95.866,95.832,0.25]
[1643438097537,24.6596,95.888,95.835,2.82268189]
[1643438097737,24.6596,95.888,95.836,2.82268189]
[1643438097937,24.6596,95.888,95.837,39.20020571]
[1643438098137,24.6596,95.888,95.838,3.63098288]
[1643438098338,24.6596,95.888,95.838,3.88098288]
[1643438098539,23.1775,95.909,95.839,3.63098288]
[1643438098742,23.1775,95.909,95.839,6.17366535]
[1643438099042,6.0,95.899,95.841,2.82268189]
[1643438099341,6.0,95.899,95.842,2.79268247]
[1643438099541,0.25,95.908,95.842,2.79268247]
[1643438099744,9.66059552,95.898,95.843,6.17366535]
[1643438100041,6.0,95.888,95.844,3.63098288]
[1643438100242,6.0,95.888,95.844,6.42366535]
[1643438100442,6.0,95.888,95.842,3.07268189]
[1643438100443,6.0,95.888,95.845,6.17366535]
[1643438100645,0.25,95.887,95.828,2.82268189]
[1643438100844,23.9093,95.887,95.829,2.82268189]
[1643438101043,6.0,95.877,95.829,2.82268189]
[1643438101246,6.0,95.877,95.826,2.82268189]
[1643438101545,2.03560593,95.876,95.826,36.69873193]
[1643438101845,2.03560593,95.876,95.827,3.88541619]
[1643438102044,6.0,95.866,95.828,3.88541619]
[1643438102443,1.78560593,95.876,95.829,3.63541619]
[1643438102846,1.78560593,95.876,95.83,42.64382646]
[1643438103143,1.78560593,95.876,95.831,3.63541619]
[1643438103344,1.78560593,95.876,95.832,0.25]
[1643438103545,23.6593,95.887,95.833,3.63541619]
[1643438103944,6.0,95.877,95.834,0.25]
[1643438104344,6.0,95.877,95.835,3.63541619]
[1643438104545,9.60052123,95.909,95.836,0.25]
[1643438104747,9.60052123,95.909,95.846,35.37706518]
[1643438104945,9.60052123,95.909,95.847,3.63541619]
[1643438105147,9.60052123,95.909,95.847,3.88541619]
[1643438105445,9.60052123,95.909,95.848,3.63541619]
[1643438105647,9.60052123,95.909,95.848,6.17809866]
[1643438105946,9.60052123,95.909,95.849,6.42809866]
[1643438106147,9.60052123,95.909,95.85,6.45809808]
[1643438106346,9.60052123,95.909,95.852,2.82268189]
[1643438106547,9.60052123,95.909,95.852,3.63541619]
[1643438106747,9.60052123,95.909,95.853,13.04008686]
[1643438106948,9.60052123,95.909,95.854,3.63541619]
[1643438107350,9.60052123,95.909,95.855,0.25]
[1643438107750,9.60052123,95.909,95.856,3.63541619]
[1643438108348,0.25,95.908,95.857,0.25]
[1643438108549,9.60052123,95.909,95.857,0.25]
[1643438108750,23.2055,95.908,95.858,3.63063063]
[1643438109551,0.25,95.907,95.857,0.25]
[1643438109751,0.25,95.907,95.851,0.25]
[1643438109954,0.25,95.907,95.852,3.63138339]
[1643438110157,0.25,95.907,95.851,3.63138339]
[1643438110352,23.2055,95.908,95.852,0.25]
[1643438110553,0.25,95.907,95.853,3.63138339]
[1643438110951,0.25,95.907,95.854,0.25]
[1643438111355,6.0,95.898,95.854,0.25]
[1643438112154,6.0,95.898,95.85,0.25]
[1643438112355,6.0,95.898,95.851,3.63120525]
[1643438112771,6.0,95.898,95.852,0.25]
[1643438113373,6.0,95.898,95.853,2.54268247]
[1643438113773,6.0,95.898,95.854,0.25]
[1643438117981,6.0,95.898,95.855,2.54268247]
[1643438118381,6.0,95.898,95.856,0.25]
[1643438118781,6.0,95.898,95.857,2.54268247]
[1643438119181,6.0,95.898,95.858,0.25]
[1643438120487,6.0,95.898,95.844,0.25]
[1643438120687,24.1104,95.897,95.845,3.6324499]
[1643438120886,24.1104,95.897,95.835,2.82268189]
[1643438120887,35.6604,95.897,95.835,2.82268189]
[1643438121088,6.0,95.887,95.825,6.45513179]
[1643438121287,23.0737,95.886,95.822,2.82268189]
[1643438121491,23.0737,95.886,95.812,3.6324499]
[1643438121492,1.84568022,95.885,95.824,39.49761598]
[1643438121686,6.0,95.876,95.825,3.6324499]
[1643438121890,6.25,95.875,95.825,3.6324499]
[1643438122287,6.25,95.875,95.814,2.82268189]
[1643438122288,23.3711,95.874,95.814,2.82268189]
[1643438122489,23.3711,95.874,95.787,4.20684958]
[1643438122490,23.3711,95.874,95.813,2.82268189]
[1643438122691,23.3711,95.874,95.812,2.82268189]
[1643438122692,6.0,95.864,95.812,2.82268189]
[1643438122889,23.6211,95.863,95.81,2.82268189]
[1643438123090,6.0,95.853,95.808,6.45698384]
[1643438123290,0.25,95.852,95.808,3.88430195]
[1643438123691,0.25,95.852,95.809,16.48033998]
[1643438123894,6.0,95.844,95.809,16.48033998]
[1643438124091,6.0,95.844,95.807,33.93954668]
[1643438124291,6.0,95.844,95.808,3.63281092]
[1643438124492,6.0,95.844,95.799,2.82268189]
[1643438124691,6.0,95.844,95.798,2.82268189]
[1643438124892,6.0,95.844,95.8,12.84053658]
[1643438125093,0.25,95.843,95.801,3.63281092]
[1643438125295,0.25,95.843,95.8,12.84053658]
[1643438125492,0.25,95.843,95.792,43.09884093]
[1643438125694,9.60052123,95.854,95.793,3.62843612]
[1643438125899,9.60052123,95.854,95.793,19.29270033]
[1643438126094,9.60052123,95.854,95.794,0.25]
[1643438126294,9.60052123,95.854,95.794,19.54270033]
[1643438126495,0.25,95.853,95.795,2.82268189]
[1643438126695,6.0,95.844,95.795,16.72001844]
[1643438126896,0.25,95.843,95.796,3.87843612]
[1643438127098,0.25,95.843,95.797,3.62843612]
[1643438127301,0.25,95.843,95.797,0.25]
[1643438127700,24.2917,95.843,95.797,0.25]
[1643438127903,23.4735,95.888,95.797,0.25]
[1643438128101,6.0,95.863,95.797,0.25]
[1643438128301,6.0,95.863,95.798,16.45712031]
[1643438128503,24.0417,95.872,95.799,3.62413475]
[1643438128703,6.0,95.862,95.799,16.70712031]
[1643438129002,9.37925223,95.861,95.8,3.62413475]
[1643438129202,9.37925223,95.861,95.8,16.45712031]
[1643438129402,6.0,95.851,95.801,3.87413475]
[1643438129605,6.0,95.851,95.801,16.70712031]
[1643438129804,0.25,95.85,95.801,13.08298556]
[1643438130103,6.25,95.85,95.801,0.25]
[1643438130306,6.25,95.85,95.793,0.25]
[1643438130506,6.0,95.85,95.794,3.62392919]
[1643438130904,6.0,95.85,95.795,0.25]
[1643438131103,0.25,95.849,95.796,3.62392919]
[1643438131336,0.25,95.849,95.797,0.25]
[1643438131535,23.8696,95.849,95.797,13.08621655]
[1643438131936,6.0,95.839,95.798,12.83621655]
[1643438132336,6.0,95.839,95.793,12.83621655]
[1643438132538,6.0,95.839,95.794,3.62288262]
[1643438132940,0.25,95.838,95.793,12.83621655]
[1643438133144,0.25,95.838,95.783,12.83621655]
[1643438133740,0.25,95.838,95.776,12.83621655]
[1643438133937,23.1263,95.838,95.778,6.0]
[1643438134238,2.06694922,95.827,95.778,6.0]
[1643438134438,2.06694922,95.827,95.769,12.83621655]
[1643438134439,22.8673,95.826,95.769,12.83621655]
[1643438134639,6.0,95.816,95.77,3.62425915]
[1643438134837,6.0,95.816,95.771,0.25]
[1643438135038,6.0,95.816,95.771,13.10673547]
[1643438135239,22.8673,95.815,95.771,13.10673547]
[1643438135440,22.8673,95.815,95.771,0.25]
[1643438136242,0.25,95.814,95.765,0.25]
[1643438136642,6.0,95.805,95.765,0.25]
[1643438136843,6.0,95.805,95.757,0.25]
[1643438137143,6.0,95.805,95.758,3.62209777]
[1643438137345,6.0,95.805,95.76,6.0]
[1643438137552,6.0,95.814,95.768,6.0]
[1643438137750,6.0,95.814,95.769,45.42648614]
[1643438137954,6.0,95.817,95.769,45.67648614]
[1643438138150,6.0,95.817,95.759,0.25]
[1643438138453,6.0,95.817,95.767,6.0]
[1643438138652,6.0,95.817,95.766,6.0]
[1643438138948,6.0,95.817,95.767,0.25]
[1643438139148,6.0,95.815,95.767,0.25]
[1643438139749,6.0,95.806,95.767,0.25]
[1643438139951,6.0,95.806,95.726,4.20684958]
[1643438139952,6.0,95.806,95.749,2.82268189]
[1643438140154,6.0,95.806,95.71,15.06]
[1643438140155,24.6486,95.805,95.74,3.62254506]
[1643438140348,35.0786,95.805,95.723,2.82268189]
[1643438140549,9.37925223,95.794,95.718,3.62254506]
[1643438140851,9.37925223,95.794,95.71,2.82268189]
[1643438140852,15.06,95.79,95.71,2.82268189]
[1643438141049,6.0,95.78,95.708,6.44522695]
[1643438141249,6.0,95.78,95.707,2.54268247]
[1643438141250,22.5134,95.779,95.711,12.8835624]
[1643438141452,22.7634,95.779,95.711,12.8835624]
[1643438141651,6.0,95.769,95.708,12.8835624]
[1643438141851,0.25,95.768,95.708,12.8835624]
[1643438142051,0.25,95.768,95.709,2.54268247]
[1643438142452,24.1958,95.768,95.709,2.54268247]
[1643438142659,2.06694922,95.757,95.709,2.54268247]
[1643438142850,0.25,95.756,95.709,2.54268247]
[1643438143460,0.25,95.756,95.689,2.82268189]
[1643438143461,9.69,95.756,95.69,2.55051997]
[1643438143653,15.06,95.75,95.671,2.82268189]
[1643438143850,15.06,95.75,95.616,3.0]
[1643438143851,6.0,95.746,95.651,2.82268189]
[1643438144063,6.0,95.74,95.63,2.82268189]
[1643438144252,6.0,95.74,95.622,3.59526151]
[1643438144253,15.06,95.73,95.622,3.59526151]
[1643438144451,23.1117,95.729,95.622,6.4179434]
[1643438144651,15.688,95.7,95.622,3.59526151]
[1643438144854,24.0064,95.699,95.623,44.25435268]
[1643438145054,6.0,95.689,95.645,1.3980583]
[1643438145255,0.25,95.688,95.646,1.6480583]
[1643438145451,0.25,95.688,95.624,3.59526151]
[1643438145452,0.25,95.688,95.633,1.3980583]
[1643438145653,0.25,95.688,95.635,1.3980583]
[1643438145853,6.0,95.689,95.636,0.25]
[1643438146053,0.25,95.688,95.636,0.25]
[1643438146251,13.78,95.688,95.636,0.25]
[1643438146452,13.78,95.688,95.63,1.3980583]
[1643438146651,6.0,95.678,95.629,1.3980583]
[1643438146855,0.25,95.677,95.626,1.3980583]
[1643438147152,6.25,95.677,95.619,1.3980583]
[1643438147351,6.25,95.677,95.61,1.3980583]
[1643438147552,6.25,95.677,95.611,1.3980583]
[1643438147953,6.25,95.677,95.585,2.82268189]
[1643438147954,6.25,95.677,95.612,1.3980583]
[1643438148251,6.25,95.677,95.55,27.30207652]
[1643438148252,15.06,95.67,95.563,1.3980583]
[1643438148453,203.34,95.67,95.559,1.3980583]
[1643438148656,6.0,95.66,95.559,1.3980583]
[1643438148853,15.06,95.65,95.557,1.3980583]
[1643438149052,6.0,95.64,95.557,1.3980583]
[1643438149253,15.7,95.63,95.56,1.3980583]
[1643438149455,15.7,95.63,95.556,0.25]
[1643438149652,0.25,95.629,95.556,0.25]
[1643438149853,0.25,95.629,95.556,2.79331143]
[1643438150052,23.9485,95.639,95.557,3.94136973]
[1643438150253,0.25,95.638,95.558,0.25]
[1643438150754,0.25,95.638,95.555,43.31018251]
[1643438150954,0.25,95.638,95.556,1.3980583]
[1643438151158,6.0,95.629,95.551,1.3980583]
[1643438151357,0.25,95.628,95.545,1.3980583]
[1643438151556,0.25,95.628,95.544,1.3980583]
[1643438151956,0.25,95.628,95.554,6.0]
[1643438152153,0.25,95.628,95.555,45.45290086]
[1643438152353,24.5007,95.628,95.555,45.45290086]
[1643438152552,6.0,95.618,95.555,45.45290086]
[1643438152754,15.73,95.618,95.555,45.45290086]
[1643438152952,15.73,95.618,95.547,1.3980583]
[1643438153353,0.25,95.617,95.538,1.3980583]
[1643438153553,6.25,95.617,95.538,7.3980583]
[1643438153757,6.0,95.608,95.538,6.0]
[1643438153954,23.3989,95.627,95.539,34.07885276]
[1643438154153,6.0,95.617,95.539,34.07885276]
[1643438154353,6.0,95.607,95.54,0.25]
[1643438155154,6.0,95.617,95.54,0.25]
[1643438155355,0.25,95.616,95.54,0.25]
[1643438155555,6.0,95.617,95.54,0.25]
[1643438155754,0.25,95.616,95.54,0.25]
[1643438157356,23.3989,95.627,95.549,6.0]
[1643438157757,23.3989,95.627,95.55,0.25]
[1643438158156,23.3989,95.627,95.55,6.25]
[1643438158557,0.25,95.626,95.55,6.25]
[1643438158759,6.0,95.617,95.539,35.47691106]
[1643438158959,6.0,95.617,95.539,34.07885276]
[1643438159157,6.25,95.616,95.539,34.07885276]
[1643438159558,6.0,95.61,95.539,34.07885276]
[1643438159959,6.0,95.605,95.539,34.07885276]
[1643438160362,0.25,95.604,95.539,34.07885276]
[1643438160559,0.25,95.604,95.549,6.0]
[1643438160760,0.25,95.604,95.53,113.7]
[1643438161061,9.45,95.604,95.515,1.3980583]
[1643438161259,6.0,95.594,95.516,1.3980583]
[1643438161463,6.0,95.594,95.521,6.0]
[1643438161658,0.25,95.593,95.522,34.41865203]
[1643438161858,10.65,95.593,95.523,0.25]
[1643438162060,6.0,95.583,95.523,1.6480583]
[1643438162258,6.0,95.583,95.523,0.25]
[1643438162660,6.0,95.583,95.523,1.6480583]
[1643438162858,6.0,95.6,95.523,1.3980583]
[1643438163058,23.395,95.599,95.523,1.3980583]
[1643438163259,23.645,95.599,95.525,1.3980583]
[1643438163459,6.0,95.589,95.527,1.3980583]
[1643438163658,6.0,95.589,95.528,1.3980583]
[1643438163659,0.25,95.588,95.528,1.3980583]
[1643438163861,0.25,95.588,95.526,1.3980583]
[1643438164362,0.25,95.588,95.529,1.3980583]
[1643438165159,0.25,95.588,95.533,1.3980583]
[1643438165359,0.25,95.588,95.53,1.3980583]
[1643438165560,0.25,95.588,95.521,1.3980583]
[1643438165762,25.1677,95.588,95.522,0.25]
[1643438165964,25.1677,95.588,95.531,1.3980583]
[1643438166163,6.0,95.578,95.533,1.3980583]
[1643438166364,0.25,95.577,95.533,1.3980583]
[1643438166565,0.25,95.577,95.526,1.3980583]
[1643438166964,6.25,95.577,95.52,1.3980583]
[1643438167563,6.25,95.577,95.511,1.3980583]
[1643438167963,6.0,95.57,95.512,1.3980583]
[1643438168263,0.25,95.569,95.514,1.3980583]
[1643438168464,6.0,95.567,95.514,1.3980583]
[1643438168663,23.8591,95.569,95.514,1.3980583]
[1643438168863,6.0,95.559,95.515,1.3980583]
[1643438169266,0.25,95.558,95.515,1.3980583]
[1643438169562,0.25,95.558,95.531,1.3980583]
[1643438169767,0.25,95.558,95.532,1.3980583]
[1643438169964,6.0,95.559,95.532,1.3980583]
[1643438170164,9.45569196,95.569,95.533,1.3980583]
[1643438170368,9.45569196,95.569,95.513,1.3980583]
[1643438170567,23.7591,95.579,95.513,1.3980583]
[1643438170873,23.7591,95.579,95.514,0.25]
[1643438171076,23.7591,95.579,95.513,1.3980583]
[1643438171272,6.0,95.569,95.513,1.3980583]
[1643438171468,6.0,95.569,95.516,1.3980583]
[1643438171669,6.0,95.56,95.517,1.3980583]
[1643438171871,6.0,95.56,95.518,1.3980583]
[1643438172071,0.25,95.559,95.515,1.3980583]
[1643438172693,15.713,95.55,95.506,1.3980583]
[1643438172892,0.25,95.549,95.509,1.3980583]
[1643438173192,6.0,95.54,95.51,0.25]
[1643438173392,110.5468,95.639,95.532,1.3980583]
[1643438173592,110.5468,95.639,95.511,3.32976904]
[1643438173593,15.06,95.59,95.542,1.3980583]
[1643438173793,15.06,95.61,95.543,0.25]
[1643438173992,15.06,95.61,95.546,1.3980583]
[1643438174194,15.06,95.61,95.549,1.3980583]
[1643438174393,15.06,95.61,95.519,2.54331143]
[1643438174394,6.0,95.569,95.543,1.3980583]
[1643438174591,6.0,95.569,95.537,1.3980583]
[1643438174793,6.0,95.569,95.519,1.3980583]
[1643438174992,0.25,95.568,95.519,1.3980583]
[1643438175193,6.0,95.566,95.515,1.3980583]
[1643438175392,6.0,95.566,95.523,1.3980583]
[1643438175594,6.0,95.569,95.533,1.3980583]
[1643438175796,6.0,95.569,95.537,1.3980583]
[1643438175995,6.0,95.569,95.54,1.3980583]
[1643438176194,6.0,95.569,95.536,1.3980583]
[1643438176395,6.0,95.569,95.525,1.3980583]
[1643438176797,0.25,95.568,95.526,1.3980583]
[1643438176999,0.25,95.568,95.525,1.3980583]
[1643438177196,0.25,95.568,95.533,1.3980583]
[1643438177396,0.25,95.568,95.532,1.3980583]
[1643438177798,0.25,95.568,95.538,1.3980583]
[1643438178201,6.0,95.569,95.539,1.3980583]
[1643438178399,0.25,95.568,95.54,1.3980583]
[1643438178602,0.25,95.568,95.541,1.3980583]
[1643438179000,6.0,95.569,95.541,1.3980583]
[1643438179202,6.0,95.569,95.545,1.3980583]
[1643438179602,6.0,95.569,95.544,1.3980583]
[1643438179999,6.0,95.569,95.545,1.3980583]
[1643438180602,6.0,95.569,95.546,1.3980583]